bitfinex/quotes_BTCUSD_20250108
["timestamp","ask_amount","ask_price","bid_price","bid_amount"]
[1736310287642,0.00100295,96481.0,96480.0,1.23584857]
[1736310288060,0.00100295,96481.0,96480.0,0.75373351]
[1736310288556,0.0001706,96492.0,96491.0,0.1]
[1736310288788,0.0001706,96492.0,96491.0,0.43034358]
[1736310289028,0.0001706,96492.0,96491.0,0.43257861]
[1736310289728,0.0001706,96492.0,96491.0,0.9620611]
[1736310290184,0.0001706,96492.0,96491.0,0.9630611]
[1736310290414,0.49631941,96500.0,96499.0,0.207256]
[1736310290638,0.49631941,96500.0,96499.0,0.32929041]
[1736310290846,0.49631941,96500.0,96499.0,0.33245767]
[1736310291293,0.49631941,96500.0,96499.0,0.67657792]
[1736310291490,0.0001706,96508.0,96500.0,0.023]
[1736310291710,0.0001706,96508.0,96504.0,0.207243]
[1736310291908,0.0001706,96508.0,96505.0,0.12203441]
[1736310292141,0.0001706,96508.0,96505.0,0.12520167]
[1736310293310,0.0001706,96508.0,96505.0,0.12620167]
[1736310293545,0.0001706,96508.0,96505.0,0.16767407]
[1736310294376,0.0021708,96506.0,96505.0,0.16767407]
[1736310295435,0.0021708,96506.0,96505.0,0.00416726]
[1736310296615,0.0021708,96506.0,96505.0,0.00316726]
[1736310296814,0.8228958,96506.0,96505.0,0.00316726]
[1736310297019,0.8228958,96506.0,96481.0,0.09247241]
[1736310297020,0.207264,96496.0,96481.0,0.09247241]
[1736310297236,0.357249,96502.0,96481.0,0.09247241]
[1736310297448,0.207264,96496.0,96481.0,0.0560689]
[1736310297841,0.207275,96491.0,96482.0,0.023]
[1736310298604,0.207275,96491.0,96476.0,0.02403639]
[1736310298819,0.207275,96491.0,96482.0,0.023]
[1736310299231,0.207275,96491.0,96481.0,0.001]
[1736310299232,0.208275,96491.0,96481.0,0.001]
[1736310299411,0.208275,96491.0,96483.0,0.023]
[1736310299883,0.208275,96491.0,96482.0,0.02452344]
[1736310300000,0.208275,96491.0,96483.0,0.023]
[1736310300428,0.207264,96496.0,96483.0,0.023]
[1736310300634,0.207264,96496.0,96484.0,0.01465579]
[1736310301454,0.001,96491.0,96484.0,0.01465579]
[1736310301665,0.207275,96490.0,96485.0,0.00307986]
[1736310301867,0.207275,96490.0,96484.0,0.01465579]
[1736310302074,0.207275,96490.0,96484.0,0.01665579]
[1736310302287,0.207275,96490.0,96484.0,0.01465579]
[1736310302954,0.207264,96495.0,96478.0,0.023]
[1736310303171,0.207288,96484.0,96483.0,0.001]
[1736310303413,0.357288,96484.0,96483.0,0.001]
[1736310303617,0.20732,96469.0,96468.0,0.09260486]
[1736310303887,0.207316,96471.0,96468.0,0.09260486]
[1736310304092,0.207316,96471.0,96468.0,0.00013245]
[1736310304093,0.35732,96469.0,96468.0,0.00013245]
[1736310304328,0.775059,96469.0,96468.0,0.00013245]
[1736310304575,0.64057326,96469.0,96468.0,0.00013245]
[1736310305065,0.64057326,96469.0,96468.0,0.00113245]
[1736310305312,0.63030126,96469.0,96468.0,0.00013245]
[1736310305503,0.55340026,96469.0,96468.0,0.00013245]
[1736310305705,0.56040026,96469.0,96468.0,0.00013245]
[1736310306386,0.56240026,96469.0,96468.0,0.00013245]
[1736310306778,0.55340026,96469.0,96468.0,0.00013245]
[1736310307190,0.56240026,96469.0,96468.0,0.00013245]
[1736310307398,0.55540026,96469.0,96468.0,0.00013245]
[1736310307843,0.73553467,96469.0,96468.0,0.00013245]
[1736310308840,0.53932967,96469.0,96468.0,0.00013245]
[1736310309025,0.98097467,96469.0,96468.0,0.00013245]
[1736310309274,0.98297467,96469.0,96468.0,0.00013245]
[1736310309689,0.98097467,96469.0,96468.0,0.00013245]
[1736310309899,0.92247667,96469.0,96468.0,0.00013245]
[1736310310336,0.91547667,96469.0,96468.0,0.00013245]
[1736310310536,0.36619526,96469.0,96468.0,0.00013245]
[1736310310758,0.53547626,96469.0,96468.0,0.00013245]
[1736310310970,0.52647626,96469.0,96468.0,0.00013245]
[1736310311437,0.53547626,96469.0,96468.0,0.00013245]
[1736310311651,0.51747626,96469.0,96468.0,0.00013245]
[1736310311881,0.52647626,96469.0,96468.0,0.00013245]
[1736310312540,0.53547626,96469.0,96468.0,0.00013245]
[1736310312963,0.52647626,96469.0,96468.0,0.00013245]
[1736310313094,0.72454508,96469.0,96468.0,0.00013245]
[1736310313281,0.73354508,96469.0,96468.0,0.00013245]
[1736310313680,0.71554508,96469.0,96468.0,0.00013245]
[1736310313921,0.72454508,96469.0,96468.0,0.00013245]
[1736310314128,0.73354508,96469.0,96468.0,0.00013245]
[1736310314339,0.72454508,96469.0,96468.0,0.00013245]
[1736310314540,0.73354508,96469.0,96468.0,0.00013245]
[1736310314952,0.72454508,96469.0,96468.0,0.00013245]
[1736310315374,0.73354508,96469.0,96468.0,0.00013245]
[1736310315619,0.72454508,96469.0,96468.0,0.00013245]
[1736310315816,0.73354508,96469.0,96468.0,0.00013245]
[1736310316437,0.72454508,96469.0,96468.0,0.00013245]
[1736310316682,0.63451067,96469.0,96468.0,0.00013245]
[1736310320076,0.63451067,96469.0,96468.0,4.5e-07]
[1736310320297,0.47422967,96469.0,96468.0,4.5e-07]
[1736310324626,0.47422967,96469.0,96429.0,8.53e-05]
[1736310324627,0.207387,96439.0,96429.0,8.53e-05]
[1736310324870,0.207387,96439.0,96430.0,0.023]
[1736310325084,0.207387,96439.0,96430.0,0.02592098]
[1736310326828,0.414774,96439.0,96429.0,0.00021767]
[1736310327037,0.207376,96443.0,96429.0,0.00021767]
[1736310327259,0.207392,96436.0,96429.0,0.00021767]
[1736310327850,0.15,96455.0,96429.0,0.00021767]
[1736310327851,0.207402,96431.0,96429.0,0.00021767]
[1736310329243,0.209402,96431.0,96429.0,0.00021767]
[1736310329993,0.002,96431.0,96429.0,0.00021767]
[1736310330196,0.207404,96430.0,96429.0,0.00021767]
[1736310331363,0.209404,96430.0,96429.0,0.00021767]
[1736310331603,0.207404,96430.0,96429.0,0.00021767]
[1736310332112,0.213404,96430.0,96429.0,0.00021767]
[1736310332344,0.207404,96430.0,96429.0,0.00021767]
[1736310332575,0.213404,96430.0,96429.0,0.00021767]
[1736310333072,0.215404,96430.0,96429.0,0.00021767]
[1736310334652,0.319318,96430.0,96429.0,0.00021767]
[1736310334894,0.374318,96430.0,96429.0,0.00021767]
[1736310335121,0.215404,96430.0,96429.0,0.00021767]
[1736310335560,0.21511887,96430.0,96429.0,0.00021767]
[1736310339468,0.20711887,96430.0,96429.0,0.00021767]
[1736310339700,0.21411887,96430.0,96429.0,0.00021767]
[1736310339948,0.21611887,96430.0,96429.0,0.00021767]
[1736310341069,0.21411887,96430.0,96429.0,0.00021767]
[1736310341278,0.21711887,96430.0,96429.0,0.00021767]
[1736310341487,0.21011887,96430.0,96429.0,0.00021767]
[1736310341688,0.21711887,96430.0,96429.0,0.00021767]
[1736310341932,0.21411887,96430.0,96429.0,0.00021767]
[1736310342187,0.21411887,96430.0,96418.0,0.09247241]
[1736310342188,0.15,96429.0,96418.0,0.09247241]
[1736310342386,0.17155119,96430.0,96373.0,0.85389542]
[1736310342387,0.1,96393.0,96392.0,0.45544728]
[1736310342598,0.1,96393.0,96391.0,8.53e-05]
[1736310342599,0.15,96392.0,96391.0,8.53e-05]
[1736310342829,2.729844,96392.0,96391.0,3e-07]
[1736310343038,1.1164361,96392.0,96391.0,3e-07]
[1736310343277,1.1164361,96392.0,96391.0,7.3e-07]
[1736310343887,4.897047,96391.0,96390.0,3e-08]
[1736310344103,0.557488,96391.0,96390.0,3e-08]
[1736310344304,0.56114443,96391.0,96390.0,3e-08]
[1736310344707,0.1,96370.0,96354.0,8.53e-05]
[1736310344861,0.6138603,96370.0,96354.0,8.53e-05]
[1736310345064,0.61751673,96370.0,96354.0,8.53e-05]
[1736310345271,3.98866873,96370.0,96369.0,4e-07]
[1736310345474,0.71751673,96370.0,96369.0,4e-07]
[1736310345676,0.8375498,96370.0,96369.0,4e-07]
[1736310345885,0.207565,96355.0,96349.0,0.0502411]
[1736310346102,0.20757,96353.0,96349.0,0.0502411]
[1736310347098,0.00050985,96353.0,96350.0,0.023]
[1736310347727,0.00050985,96353.0,96352.0,0.1039]
[1736310347963,0.00050985,96353.0,96352.0,0.20397214]
[1736310348103,0.00050985,96353.0,96352.0,0.20293441]
[1736310348331,0.00950985,96353.0,96352.0,0.20293441]
[1736310348506,0.01850985,96353.0,96352.0,0.20293441]
[1736310348736,0.00050985,96353.0,96352.0,0.20293441]
[1736310349134,0.00950985,96353.0,96349.0,0.0502411]
[1736310349337,0.03596878,96352.0,96349.0,0.0502411]
[1736310349692,0.00050985,96353.0,96349.0,0.0502411]
[1736310349943,0.00950985,96353.0,96349.0,0.0502411]
[1736310350194,0.00927456,96353.0,96349.0,0.0502411]
[1736310350725,0.207574,96351.0,96349.0,0.0502411]
[1736310352098,0.216574,96351.0,96349.0,0.0502411]
[1736310352275,0.009,96351.0,96350.0,0.023]
[1736310352689,0.003,96352.0,96350.0,0.023]
[1736310352944,0.00027456,96353.0,96350.0,0.023]
[1736310353161,0.003,96351.0,96350.0,0.023]
[1736310353621,0.00027456,96353.0,96350.0,0.023]
[1736310353840,0.207557,96359.0,96352.0,0.023]
[1736310354054,0.207557,96359.0,96354.0,0.023]
[1736310354262,0.207515,96379.0,96375.0,0.59365973]
[1736310354472,0.8965853,96376.0,96375.0,0.59365973]
[1736310354690,0.8978733,96376.0,96375.0,0.59365973]
[1736310354917,0.4638193,96376.0,96375.0,0.59365973]
[1736310355139,0.8765853,96376.0,96375.0,0.59365973]
[1736310355582,1.0931053,96376.0,96375.0,0.59365973]
[1736310357080,1.1021053,96376.0,96375.0,0.59365973]
[1736310358642,1.41355165,96376.0,96375.0,0.59365973]
[1736310358857,1.35113971,96376.0,96375.0,0.59365973]
[1736310360158,1.2521053,96376.0,96375.0,0.59365973]
[1736310360319,0.22552,96376.0,96375.0,0.59365973]
[1736310360517,0.335581,96376.0,96375.0,0.59365973]
[1736310360730,0.018,96376.0,96375.0,0.59365973]
[1736310360934,0.018,96376.0,96375.0,0.69715973]
[1736310361150,0.009,96376.0,96375.0,0.84149414]
[1736310361358,0.32508466,96390.0,96376.0,0.023]
[1736310361558,0.32508466,96390.0,96378.0,0.023]
[1736310361967,0.207492,96389.0,96378.0,0.023]
[1736310362582,0.11759266,96390.0,96378.0,0.023]
[1736310362788,0.11759266,96390.0,96379.0,0.41473528]
[1736310362993,0.12659266,96390.0,96386.0,0.023]
[1736310363200,0.009,96389.0,96388.0,0.023]
[1736310363410,0.009,96389.0,96388.0,0.30394119]
[1736310363630,0.009,96389.0,96388.0,0.24283441]
[1736310364035,0.08559266,96390.0,96389.0,0.207492]
[1736310364235,0.207424,96421.0,96390.0,0.207488]
[1736310364431,0.207435,96416.0,96392.0,0.207486]
[1736310364687,0.207435,96416.0,96393.0,0.10007162]
[1736310365386,0.41487,96416.0,96394.0,0.414962]
[1736310365551,0.41487,96416.0,96395.0,0.10007162]
[1736310365751,0.41487,96416.0,96396.0,0.023]
[1736310365957,0.207446,96411.0,96398.0,0.023]
[1736310366155,0.207446,96411.0,96400.0,0.023]
[1736310366386,0.207446,96411.0,96400.0,0.12203441]
[1736310366910,0.215435,96416.0,96401.0,0.207466]
[1736310367029,0.008,96416.0,96402.0,0.12307162]
[1736310367235,0.008,96416.0,96404.0,0.023]
[1736310367647,0.008,96416.0,96408.0,0.023]
[1736310367857,0.009,96416.0,96415.0,0.023]
[1736310368054,0.207411,96427.0,96415.0,0.023]
[1736310368452,0.207411,96427.0,96411.0,0.023]
[1736310368750,0.009,96416.0,96413.0,0.20744]
[1736310368941,0.2074,96432.0,96415.0,0.207436]
[1736310369095,0.002,96416.0,96415.0,0.207436]
[1736310369507,0.006,96427.0,96415.0,0.207436]
[1736310369707,0.006,96427.0,96420.0,0.207425]
[1736310369925,0.006,96427.0,96422.0,0.207421]
[1736310370790,0.006,96427.0,96424.0,0.207417]
[1736310371004,0.006,96427.0,96423.0,0.023]
[1736310371263,0.0001708,96433.0,96423.0,0.023]
[1736310371464,0.0001708,96433.0,96422.0,0.207421]
[1736310371465,0.0001708,96433.0,96425.0,0.023]
[1736310371670,0.002,96427.0,96423.0,0.023]
[1736310372076,0.008,96427.0,96423.0,0.024]
[1736310372294,0.006,96427.0,96423.0,0.023]
[1736310372730,0.006,96427.0,96425.0,0.024]
[1736310372932,0.0071708,96433.0,96427.0,0.023]
[1736310373139,0.0071708,96433.0,96427.0,0.230409]
[1736310373344,0.001,96427.0,96426.0,0.023]
[1736310374591,0.007,96427.0,96426.0,0.023]
[1736310375232,0.0001708,96433.0,96426.0,0.023]
[1736310375440,0.0021708,96433.0,96426.0,0.023]
[1736310375650,0.008,96427.0,96426.0,0.024]
[1736310376485,0.001,96427.0,96426.0,0.023]
[1736310378324,0.001,96427.0,96426.0,0.024]
[1736310378707,0.001,96427.0,96426.0,0.0982]
[1736310379121,0.00094534,96427.0,96426.0,0.13866514]
[1736310379257,0.00094534,96427.0,96426.0,0.13966514]
[1736310379463,0.00894534,96427.0,96426.0,0.13966514]
[1736310379668,0.00894534,96427.0,96426.0,0.0992]
[1736310380607,0.00894534,96427.0,96426.0,0.024]
[1736310381429,0.0001708,96433.0,96426.0,0.024]
[1736310381855,0.001,96427.0,96426.0,0.023]
[1736310382157,0.009,96427.0,96426.0,0.024]
[1736310382443,0.001,96427.0,96426.0,0.023]
[1736310382643,0.0091708,96433.0,96426.0,0.024]
[1736310383440,0.0111708,96433.0,96426.0,0.024]
[1736310383868,0.0021708,96433.0,96426.0,0.023]
[1736310384271,0.007,96427.0,96426.0,0.023]
[1736310385134,0.0071708,96433.0,96426.0,0.023]
[1736310385549,0.007,96427.0,96426.0,0.023]
[1736310386471,0.009,96427.0,96426.0,0.023]
[1736310387466,0.002,96427.0,96426.0,0.023]
[1736310387803,0.002,96427.0,96426.0,0.024]
[1736310388208,0.002,96427.0,96426.0,0.023]
[1736310388438,0.009,96427.0,96426.0,0.024]
[1736310390198,0.009,96427.0,96426.0,0.05704524]
[1736310390405,0.009,96427.0,96426.0,0.20251662]
[1736310390608,0.009,96427.0,96426.0,0.20147965]
[1736310391419,0.007,96427.0,96426.0,0.20147965]
[1736310391637,0.001,96427.0,96426.0,0.20047965]
[1736310391832,0.001,96427.0,96426.0,0.20151655]
[1736310392102,0.007,96427.0,96426.0,0.16843441]
[1736310392593,0.0001708,96433.0,96426.0,0.16843441]
[1736310392826,0.0001708,96433.0,96428.0,0.023]
[1736310393022,0.0001708,96433.0,96430.0,0.023]
[1736310393307,0.0001708,96433.0,96432.0,0.023]
[1736310394645,0.0011708,96433.0,96432.0,0.023]
[1736310394986,0.0011708,96433.0,96432.0,0.18025945]
[1736310394987,0.0061708,96433.0,96432.0,0.18025945]
[1736310395202,0.0061708,96433.0,96432.0,0.26139635]
[1736310395415,0.0081708,96433.0,96432.0,0.26035945]
[1736310396073,0.0161708,96433.0,96432.0,0.26135945]
[1736310396272,0.0161708,96433.0,96432.0,0.20313441]
[1736310396715,0.00657563,96433.0,96432.0,0.20313441]
[1736310397561,0.001,96433.0,96432.0,0.23448117]
[1736310397996,0.005,96433.0,96432.0,0.23448117]
[1736310401056,0.005,96433.0,96432.0,0.32695097]
[1736310402211,0.005,96433.0,96432.0,0.23448117]
[1736310402413,0.005,96433.0,96432.0,0.33351558]
[1736310403266,0.005,96433.0,96432.0,0.23448117]
[1736310403479,0.005,96433.0,96432.0,0.57696946]
[1736310404934,0.005,96433.0,96432.0,0.37483505]
[1736310405150,0.005,96433.0,96432.0,0.34248829]
[1736310405151,0.6279346,96433.0,96432.0,0.34248829]
[1736310405361,0.80522176,96433.0,96432.0,0.34248829]
[1736310405790,0.80422176,96433.0,96432.0,0.34248829]
[1736310405989,1.12655617,96433.0,96432.0,0.34248829]
[1736310406385,1.12255617,96433.0,96432.0,0.34248829]
[1736310406588,1.12255617,96433.0,96432.0,0.001]
[1736310406831,0.357421,96422.0,96421.0,0.09307191]
[1736310407039,1.65215351,96422.0,96421.0,0.09307191]
[1736310407245,3.00229011,96422.0,96421.0,0.09307191]
[1736310407425,3.59712511,96422.0,96421.0,0.07232991]
[1736310407630,3.54136511,96422.0,96421.0,0.07232991]
[1736310407838,0.1,96411.0,96410.0,0.07232991]
[1736310408039,1.93343701,96411.0,96410.0,0.07232991]
[1736310408246,2.06926617,96411.0,96410.0,0.07232991]
[1736310408687,1.92285601,96411.0,96410.0,0.07232991]
[1736310408892,1.54159886,96411.0,96410.0,0.07232991]
[1736310409064,1.54159886,96411.0,96401.0,5.087e-05]
[1736310409065,0.357464,96402.0,96401.0,5.087e-05]
[1736310409495,0.36130885,96402.0,96401.0,5.087e-05]
[1736310409697,0.357464,96402.0,96401.0,5.087e-05]
[1736310410295,0.366464,96402.0,96401.0,0.00105087]
[1736310411456,0.374464,96402.0,96401.0,0.00205087]
[1736310411655,0.008,96402.0,96401.0,0.00105087]
[1736310411833,0.009,96402.0,96401.0,0.00105087]
[1736310412457,0.018,96402.0,96401.0,0.00205087]
[1736310412843,0.018,96402.0,96401.0,0.00105087]
[1736310413444,0.009,96402.0,96401.0,5.087e-05]
[1736310413645,0.018,96402.0,96401.0,0.00105087]
[1736310413867,0.021,96402.0,96401.0,0.00105087]
[1736310414522,0.021,96402.0,96401.0,0.12308528]
[1736310414906,0.207441,96413.0,96401.0,0.12208528]
[1736310415316,0.207432,96418.0,96403.0,0.230461]
[1736310415549,0.207432,96418.0,96405.0,0.230458]
[1736310415796,0.207432,96418.0,96405.0,0.023]
[1736310416035,0.207428,96419.0,96406.0,0.02403718]
[1736310416246,0.207415,96425.0,96408.0,0.023]
[1736310416521,0.25001,96424.0,96410.0,0.023]
[1736310416762,0.009,96418.0,96412.0,0.023]
[1736310416978,0.001,96413.0,96412.0,0.12203441]
[1736310417601,0.15,96422.0,96412.0,0.12203441]
[1736310417799,0.158,96424.0,96412.0,0.12203441]
[1736310418347,0.08004776,96442.0,96412.0,0.12203441]
[1736310418348,0.005,96418.0,96412.0,0.12203441]
[1736310418598,0.001,96413.0,96412.0,0.12203441]
[1736310418972,0.001,96413.0,96412.0,0.12303441]
[1736310419173,0.001,96413.0,96412.0,0.12203441]
[1736310419580,0.001,96413.0,96412.0,0.12303441]
[1736310419785,0.001,96413.0,96412.0,0.12203441]
[1736310420179,0.008,96413.0,96412.0,0.12303441]
[1736310420655,0.007,96413.0,96412.0,0.12303441]
[1736310421060,0.007,96413.0,96412.0,0.12403441]
[1736310421438,0.207423,96422.0,96412.0,0.12203441]
[1736310421826,0.003,96413.0,96412.0,0.12203441]
[1736310422453,0.207411,96427.0,96412.0,0.12203441]
[1736310422862,0.003,96422.0,96412.0,0.12203441]
[1736310423082,0.003,96422.0,96414.0,0.023]
[1736310423494,0.003,96422.0,96413.0,0.023]
[1736310423702,0.003,96422.0,96413.0,0.23044]
[1736310424510,0.003,96422.0,96419.0,0.207427]
[1736310424719,0.003,96422.0,96420.0,0.023]
[1736310424922,0.15,96436.0,96420.0,0.12203441]
[1736310425100,0.20739,96437.0,96424.0,0.023]
[1736310425339,0.0001708,96452.0,96426.0,0.023]
[1736310425553,0.207363,96449.0,96428.0,0.023]
[1736310425781,0.207363,96449.0,96423.0,0.253818]
[1736310425782,0.207363,96449.0,96432.0,0.023]
[1736310425985,0.207363,96449.0,96434.0,0.1006]
[1736310426193,0.207363,96449.0,96436.0,0.023]
[1736310426400,0.207363,96449.0,96438.0,0.023]
[1736310427004,0.20751607,96449.0,96438.0,0.023]
[1736310428138,0.21251607,96449.0,96438.0,0.023]
[1736310428268,0.20851607,96449.0,96438.0,0.023]
[1736310428680,0.21451607,96449.0,96438.0,0.024]
[1736310430067,0.00715307,96449.0,96440.0,0.023]
[1736310430278,0.00715307,96449.0,96445.0,0.20737]
[1736310430489,0.00715307,96449.0,96447.0,0.230367]
[1736310430692,0.00715307,96449.0,96448.0,0.12307101]
[1736310430892,0.00615307,96449.0,96428.0,0.0773]
[1736310431108,0.207376,96443.0,96427.0,0.09301538]
[1736310431306,0.207378,96442.0,96427.0,0.09301538]
[1736310431535,0.20738,96441.0,96440.0,0.001]
[1736310431961,0.207395,96434.0,96427.0,0.09301538]
[1736310432166,0.207395,96434.0,96425.0,0.023]
[1736310432369,0.207395,96434.0,96425.0,0.12203441]
[1736310432574,0.207389,96438.0,96425.0,0.09903441]
[1736310432960,0.207389,96438.0,96426.0,0.023]
[1736310433181,0.215381,96441.0,96428.0,0.023]
[1736310433390,0.215381,96441.0,96430.0,0.023]
[1736310433804,0.008,96441.0,96432.0,0.023]
[1736310434007,0.215381,96441.0,96434.0,0.023]
[1736310434304,0.008,96441.0,96434.0,0.023]
[1736310434452,0.207393,96435.0,96425.0,0.001]
[1736310434685,0.207393,96435.0,96426.0,0.09903441]
[1736310435099,0.002,96434.0,96427.0,0.023]
[1736310435300,0.002,96434.0,96429.0,0.023]
[1736310435501,0.002,96434.0,96429.0,0.12203441]
[1736310435839,0.207393,96435.0,96429.0,0.12203441]
[1736310436314,0.209393,96435.0,96429.0,0.12203441]
[1736310436523,0.207393,96435.0,96429.0,0.12203441]
[1736310436933,0.003,96434.0,96429.0,0.14836939]
[1736310438296,0.207384,96440.0,96429.0,0.14836939]
[1736310438562,0.003,96435.0,96429.0,0.14836939]
[1736310439314,0.003,96434.0,96429.0,0.14836939]
[1736310439802,0.207384,96440.0,96429.0,0.14836939]
[1736310440406,0.003,96435.0,96429.0,0.14836939]
[1736310440659,0.003,96435.0,96429.0,0.12203441]
[1736310440876,0.003,96435.0,96431.0,0.023]
[1736310441134,0.003,96435.0,96433.0,0.023]
[1736310441347,0.003,96435.0,96433.0,0.12203441]
[1736310441547,0.15,96444.0,96433.0,0.12203441]
[1736310441751,0.207376,96443.0,96433.0,0.12203441]
[1736310441958,0.003,96434.0,96433.0,0.12203441]
[1736310442159,0.207376,96443.0,96433.0,0.12203441]
[1736310442516,0.005,96435.0,96433.0,0.12203441]
[1736310443326,0.207387,96438.0,96433.0,0.12203441]
[1736310443532,0.208376,96443.0,96433.0,0.12203441]
[1736310443955,0.207376,96443.0,96433.0,0.12203441]
[1736310444341,0.001,96435.0,96433.0,0.12203441]
[1736310444720,0.006,96435.0,96433.0,0.12203441]
[1736310444943,0.001,96435.0,96433.0,0.12203441]
[1736310445568,0.207386,96439.0,96433.0,0.12203441]
[1736310445781,0.207386,96439.0,96433.0,0.12303441]
[1736310445943,0.001,96435.0,96433.0,0.12303441]
[1736310446149,0.001,96435.0,96433.0,0.12203441]
[1736310446574,0.001,96435.0,96433.0,0.12303441]
[1736310446950,0.001,96435.0,96433.0,0.12203441]
[1736310447375,0.001,96435.0,96433.0,0.12303441]
[1736310447581,0.207386,96439.0,96433.0,0.12303441]
[1736310447976,0.208386,96439.0,96433.0,0.12303441]
[1736310448172,0.207386,96439.0,96433.0,0.12303441]
[1736310448596,0.001,96435.0,96433.0,0.12303441]
[1736310448796,0.207386,96439.0,96433.0,0.12303441]
[1736310448998,0.208386,96439.0,96433.0,0.12203441]
[1736310449197,0.207387,96438.0,96433.0,0.12203441]
[1736310449468,0.207387,96438.0,96433.0,0.12303441]
[1736310450307,0.207387,96438.0,96433.0,0.12203441]
[1736310450693,0.207387,96438.0,96433.0,0.12303441]
[1736310451373,0.001,96438.0,96433.0,0.12303441]
[1736310451572,0.207378,96442.0,96433.0,0.12303441]
[1736310452005,0.002,96438.0,96433.0,0.12303441]
[1736310452232,0.002,96438.0,96437.0,0.023]
[1736310452449,0.004,96438.0,96437.0,0.20147123]
[1736310452858,0.20736,96451.0,96437.0,0.17847123]
[1736310453072,0.207365,96448.0,96438.0,0.12203441]
[1736310453632,0.20736,96451.0,96438.0,0.12203441]
[1736310453843,0.20736,96451.0,96438.0,0.12307121]
[1736310454046,0.003,96442.0,96438.0,0.12307121]
[1736310454617,0.003,96442.0,96441.0,0.09301538]
[1736310454815,0.20736,96451.0,96441.0,0.19204979]
[1736310455028,0.20736,96451.0,96442.0,0.1000712]
[1736310455227,0.003,96448.0,96442.0,0.1000712]
[1736310455878,0.003,96448.0,96444.0,0.207374]
[1736310456092,0.003,96448.0,96445.0,0.09903441]
[1736310456264,0.003,96448.0,96446.0,0.023]
[1736310456480,0.003,96448.0,96447.0,0.09903441]
[1736310457104,0.001,96448.0,96447.0,0.15524162]
[1736310457326,0.001,96448.0,96447.0,0.16873441]
[1736310457534,0.001,96448.0,96447.0,0.30834227]
[1736310457832,0.00515307,96449.0,96448.0,0.023]
[1736310457833,0.00015307,96449.0,96448.0,0.023]
[1736310458041,0.00015307,96449.0,96448.0,0.12203441]
[1736310459095,0.00515307,96449.0,96448.0,0.12203441]
[1736310459306,0.00515307,96449.0,96447.0,0.0467]
[1736310459513,0.207365,96448.0,96446.0,0.09307513]
[1736310459771,0.466401,96447.0,96446.0,0.09307513]
[1736310460011,0.207369,96446.0,96444.0,0.13960786]
[1736310460219,0.488408,96445.0,96444.0,0.13960786]
[1736310460426,0.207369,96446.0,96444.0,0.13960786]
[1736310460849,0.207369,96446.0,96429.0,0.27774446]
[1736310460850,0.207394,96435.0,96431.0,0.09312747]
[1736310461855,0.207394,96435.0,96429.0,0.19216188]
[1736310462744,0.207394,96435.0,96432.0,0.09312747]
[1736310463642,0.414788,96435.0,96432.0,0.09312747]
[1736310464273,0.357397,96433.0,96432.0,0.09312747]
[1736310464490,0.357397,96433.0,96427.0,0.09312747]
[1736310464491,0.15,96432.0,96427.0,0.09312747]
[1736310464729,0.357408,96428.0,96427.0,0.09312747]
[1736310465638,0.207413,96426.0,96423.0,0.09312747]
[1736310466072,0.414826,96426.0,96423.0,0.09312747]
[1736310466638,0.207398,96433.0,96423.0,0.09312747]
[1736310466816,0.001,96426.0,96423.0,0.09312747]
[1736310467241,0.006,96428.0,96424.0,0.48372784]
[1736310467242,0.207411,96427.0,96424.0,0.48372784]
[1736310467529,0.004,96426.0,96424.0,0.48372784]
[1736310467732,0.001,96426.0,96424.0,0.48372784]
[1736310468102,0.001,96426.0,96423.0,0.13960786]
[1736310468715,0.005,96426.0,96424.0,0.13960786]
[1736310468921,0.004,96426.0,96424.0,0.13960786]
[1736310469396,0.004,96426.0,96425.0,0.55668645]
[1736310469617,0.004,96426.0,96425.0,0.58801124]
[1736310469836,0.004,96426.0,96425.0,1.0321817]
[1736310470275,0.005,96426.0,96425.0,1.1821817]
[1736310470639,0.005,96426.0,96425.0,1.28121611]
[1736310470889,0.00015307,96449.0,96448.0,0.333565]
[1736310471108,0.00015307,96449.0,96448.0,0.45559941]
[1736310471667,0.00015307,96449.0,96448.0,0.37769941]
[1736310471875,0.00015307,96449.0,96448.0,0.72186987]
[1736310473506,0.00115307,96449.0,96448.0,0.72186987]
[1736310474679,0.00015307,96449.0,96448.0,0.72186987]
[1736310474991,0.00115307,96449.0,96448.0,0.72186987]
[1736310476997,0.00115307,96449.0,96448.0,0.82090428]
[1736310477516,0.00115307,96449.0,96448.0,0.72186987]
[1736310478927,0.00115307,96449.0,96448.0,0.72286987]
[1736310479325,0.00015307,96449.0,96448.0,0.72286987]
[1736310479530,0.00015307,96449.0,96448.0,0.72186987]
[1736310479731,0.00015307,96449.0,96448.0,0.72786987]
[1736310479928,0.00015307,96449.0,96448.0,0.72386987]
[1736310480397,0.00015307,96449.0,96448.0,0.72586987]
[1736310480713,2.825e-05,96449.0,96448.0,0.82490428]
[1736310481651,2.825e-05,96449.0,96448.0,0.82690428]
[1736310482072,2.825e-05,96449.0,96448.0,0.82490428]
[1736310482446,2.825e-05,96449.0,96448.0,0.82290428]
[1736310482874,2.825e-05,96449.0,96448.0,0.82390428]
[1736310483109,2.825e-05,96449.0,96448.0,0.82290428]
[1736310483339,2.825e-05,96449.0,96448.0,0.82690428]
[1736310483773,2.825e-05,96449.0,96448.0,0.72786987]
[1736310493967,2.825e-05,96449.0,96448.0,0.35017046]
[1736310494861,2.825e-05,96449.0,96448.0,0.34817046]
[1736310495201,2.825e-05,96449.0,96448.0,0.34617046]
[1736310495632,2.825e-05,96449.0,96448.0,0.34717046]
[1736310495830,2.825e-05,96449.0,96448.0,0.14058966]
[1736310496096,2.825e-05,96449.0,96448.0,0.14158966]
[1736310496856,2.825e-05,96449.0,96448.0,0.14058966]
[1736310497342,2.825e-05,96449.0,96448.0,0.13958966]
[1736310497543,2.825e-05,96449.0,96448.0,0.48312625]
[1736310497749,2.825e-05,96449.0,96448.0,0.48412625]
[1736310498114,2.825e-05,96449.0,96448.0,0.48312625]
[1736310498317,2.825e-05,96449.0,96448.0,0.34353659]